[Event "***Titled Tuesday 3|2 Blitz"]
[Site "Chess.com"]
[Date "2017.02.07"]
[Round "3"]
[White "Grebeniuk-S"]
[Black "Yaacovn"]
[Result "1-0"]
[WhiteElo "2442"]
[BlackElo "2583"]
[TimeControl "180+2"]
[EndTime "13:44:35 PST"]
[Termination "Grebeniuk-S won on time"]

1. d4 {[%clk 0:03:02]} 1... Nf6 {[%clk 0:02:59.5]} 2. Nf3 {[%clk 0:03:01.8]}
2... e6 {[%clk 0:02:58.9]} 3. e3 {[%clk 0:03:03]} 3... b6 {[%clk 0:02:40.5]} 4.
Bd3 {[%clk 0:03:04.2]} 4... Bb7 {[%clk 0:02:39.6]} 5. Nbd2 {[%clk 0:03:05.5]}
5... Be7 {[%clk 0:02:39.7]} 6. O-O {[%clk 0:03:06.7]} 6... d6 {[%clk 0:02:37.4]}
7. b3 {[%clk 0:03:07.9]} 7... O-O {[%clk 0:02:34.5]} 8. Bb2 {[%clk 0:03:09.2]}
8... c5 {[%clk 0:02:35.4]} 9. dxc5 {[%clk 0:03:03.7]} 9... bxc5 {[%clk
0:02:34.8]} 10. e4 {[%clk 0:03:04.7]} 10... e5 {[%clk 0:02:33.3]} 11. Re1 {[%clk
0:03:01.3]} 11... Nc6 {[%clk 0:02:33.8]} 12. Nc4 {[%clk 0:03:01.8]} 12... Nb4
{[%clk 0:02:32.6]} 13. a3 {[%clk 0:02:52.1]} 13... Nxd3 {[%clk 0:02:28.6]} 14.
Qxd3 {[%clk 0:02:54]} 14... Qc7 {[%clk 0:02:26.5]} 15. Rad1 {[%clk 0:02:27.7]}
15... Rfd8 {[%clk 0:02:27]} 16. Bc3 {[%clk 0:02:22.5]} 16... Qc6 {[%clk
0:02:22.3]} 17. Na5 {[%clk 0:02:21.3]} 17... Qa6 {[%clk 0:02:22.3]} 18. Qxa6
{[%clk 0:02:07.4]} 18... Bxa6 {[%clk 0:02:17.3]} 19. Nc6 {[%clk 0:02:08.2]}
19... Kf8 {[%clk 0:02:15.5]} 20. Nxd8 {[%clk 0:02:05.5]} 20... Rxd8 {[%clk
0:02:15.1]} 21. Nd2 {[%clk 0:01:47.8]} 21... Ke8 {[%clk 0:02:03.3]} 22. Nf1
{[%clk 0:01:46.6]} 22... Nd7 {[%clk 0:01:56.2]} 23. Ne3 {[%clk 0:01:44.1]} 23...
Rc8 {[%clk 0:01:56.2]} 24. Nf5 {[%clk 0:01:42.1]} 24... Rc6 {[%clk 0:01:50.8]}
25. Nxg7+ {[%clk 0:01:41.6]} 25... Kf8 {[%clk 0:01:51.2]} 26. Nf5 {[%clk
0:01:43.5]} 26... Nb6 {[%clk 0:01:49.5]} 27. Ba5 {[%clk 0:01:36]} 27... Nd7
{[%clk 0:01:47.4]} 28. c4 {[%clk 0:01:26.3]} 28... Bc8 {[%clk 0:01:46.8]} 29.
Rd2 {[%clk 0:01:24]} 29... Ra6 {[%clk 0:01:46.3]} 30. b4 {[%clk 0:01:25.3]}
30... Nf6 {[%clk 0:01:43.6]} 31. f3 {[%clk 0:01:03.8]} 31... Be6 {[%clk
0:01:31.9]} 32. Ne3 {[%clk 0:01:03.9]} 32... Nd7 {[%clk 0:01:27.7]} 33. Red1
{[%clk 0:01:02]} 33... Bg5 {[%clk 0:01:25.1]} 34. Kf2 {[%clk 0:00:50.2]} 34...
cxb4 {[%clk 0:01:15.4]} 35. Bxb4 {[%clk 0:00:45]} 35... Kg7 {[%clk 0:01:10.2]}
36. Rxd6 {[%clk 0:00:40.1]} 36... Nb6 {[%clk 0:01:05.7]} 37. Nf5+ {[%clk
0:00:31.5]} 37... Bxf5 {[%clk 0:00:54.9]} 38. exf5 {[%clk 0:00:33.4]} 38... Ra4
{[%clk 0:00:55.3]} 39. c5 {[%clk 0:00:24.3]} 39... Nc4 {[%clk 0:00:55]} 40. c6
{[%clk 0:00:24.1]} 40... Be3+ {[%clk 0:00:33.2]} 41. Ke2 {[%clk 0:00:25.1]}
41... Bb6 {[%clk 0:00:32]} 42. Rd7 {[%clk 0:00:23.8]} 42... a5 {[%clk
0:00:31.3]} 43. Be7 {[%clk 0:00:25.1]} 43... Nb2 {[%clk 0:00:25.3]} 44. f6+
{[%clk 0:00:25.8]} 44... Kg6 {[%clk 0:00:25.9]} 45. Rb1 {[%clk 0:00:26.8]} 45...
Nc4 {[%clk 0:00:21.5]} 46. c7 {[%clk 0:00:27.2]} 46... Bxc7 {[%clk 0:00:20.6]}
47. Rxc7 {[%clk 0:00:29.1]} 47... e4 {[%clk 0:00:18]} 48. fxe4 {[%clk
0:00:29.4]} 48... Ne5 {[%clk 0:00:18.8]} 49. Ke3 {[%clk 0:00:27.9]} 49... Ng4+
{[%clk 0:00:19.1]} 50. Kf4 {[%clk 0:00:27.8]} 50... Nf2 {[%clk 0:00:19.9]} 51.
Ke3 {[%clk 0:00:24.2]} 51... Ng4+ {[%clk 0:00:20]} 52. Kf3 {[%clk 0:00:24.4]}
52... Ne5+ {[%clk 0:00:20.3]} 53. Kg3 {[%clk 0:00:21.6]} 53... Rxe4 {[%clk
0:00:19.9]} 54. Rb5 {[%clk 0:00:22.8]} 54... h5 {[%clk 0:00:18.9]} 55. Rxa5
{[%clk 0:00:22.8]} 55... h4+ {[%clk 0:00:19.5]} 56. Kh3 {[%clk 0:00:23.1]} 56...
Nd3 {[%clk 0:00:15.7]} 57. g3 {[%clk 0:00:21.9]} 57... Re2 {[%clk 0:00:09.9]}
58. gxh4 {[%clk 0:00:19]} 58... Re3+ {[%clk 0:00:09.8]} 59. Kg2 {[%clk
0:00:19.2]} 59... Nf4+ {[%clk 0:00:09.7]} 60. Kf2 {[%clk 0:00:20.6]} 60... Rb3
{[%clk 0:00:10.1]} 61. Rg5+ {[%clk 0:00:21.8]} 61... Kh7 {[%clk 0:00:10.5]} 62.
Rc8 {[%clk 0:00:20.9]} 62... Nh3+ {[%clk 0:00:08.3]} 63. Ke2 {[%clk 0:00:22.1]}
63... Rb2+ {[%clk 0:00:04.8]} 64. Kd3 {[%clk 0:00:20.4]} 64... Rb3+ {[%clk
0:00:04.4]} 65. Kc2 {[%clk 0:00:20.5]} 1-0

[Event "***Titled Tuesday 3|2 Blitz"]
[Site "Chess.com"]
[Date "2017.02.07"]
[Round "3"]
[White "AlexanderL"]
[Black "EltajSafarli"]
[Result "1/2-1/2"]
[WhiteElo "2597"]
[BlackElo "2814"]
[TimeControl "180+2"]
[EndTime "13:45:06 PST"]
[Termination "Game drawn - insufficient material"]

1. d4 {[%clk 0:03:02]} 1... e6 {[%clk 0:03:00.9]} 2. c4 {[%clk 0:03:00.3]} 2...
b6 {[%clk 0:03:01.6]} 3. e4 {[%clk 0:02:59.7]} 3... Bb7 {[%clk 0:03:02.6]} 4.
Bd3 {[%clk 0:03:00.5]} 4... Bb4+ {[%clk 0:03:03.3]} 5. Kf1 {[%clk 0:03:00.9]}
5... f5 {[%clk 0:02:58.4]} 6. exf5 {[%clk 0:02:57.7]} 6... Nf6 {[%clk
0:02:59.3]} 7. c5 {[%clk 0:02:47.8]} 7... bxc5 {[%clk 0:02:59.2]} 8. a3 {[%clk
0:02:48.9]} 8... c4 {[%clk 0:02:59.9]} 9. Bxc4 {[%clk 0:02:48.1]} 9... Ba5
{[%clk 0:02:55.5]} 10. fxe6 {[%clk 0:02:46.9]} 10... dxe6 {[%clk 0:02:55.3]} 11.
Bxe6 {[%clk 0:01:36.5]} 11... Ba6+ {[%clk 0:02:54.3]} 12. Ne2 {[%clk 0:01:36.7]}
12... Nc6 {[%clk 0:02:55.6]} 13. d5 {[%clk 0:01:13.1]} 13... Qd6 {[%clk
0:02:56.2]} 14. Nc3 {[%clk 0:01:03.3]} 14... Bxc3 {[%clk 0:02:51.9]} 15. bxc3
{[%clk 0:01:04.5]} 15... Bc4 {[%clk 0:02:51]} 16. Be3 {[%clk 0:00:48.8]} 16...
Bxd5 {[%clk 0:02:42.7]} 17. Nf4 {[%clk 0:00:44.2]} 17... Bxe6 {[%clk 0:02:34.9]}
18. Qxd6 {[%clk 0:00:45.2]} 18... Bc4+ {[%clk 0:02:36.4]} 19. Qd3 {[%clk
0:00:46.4]} 19... Bxd3+ {[%clk 0:02:24.5]} 20. Nxd3 {[%clk 0:00:48.3]} 20... O-O
{[%clk 0:02:26]} 21. Ke2 {[%clk 0:00:42]} 21... Nd5 {[%clk 0:02:22.4]} 22. c4
{[%clk 0:00:37.9]} 22... Nc3+ {[%clk 0:02:15.4]} 23. Kd2 {[%clk 0:00:39]} 23...
Ne4+ {[%clk 0:02:16.7]} 24. Kc2 {[%clk 0:00:40.5]} 24... Na5 {[%clk 0:02:12.9]}
25. c5 {[%clk 0:00:29.6]} 25... Nc4 {[%clk 0:02:13.5]} 26. Rhe1 {[%clk
0:00:28.7]} 26... Nxe3+ {[%clk 0:02:08.9]} 27. Rxe3 {[%clk 0:00:30.6]} 27...
Nxf2 {[%clk 0:02:10.4]} 28. Rf1 {[%clk 0:00:28.7]} 28... Ng4 {[%clk 0:02:08.8]}
29. Rxf8+ {[%clk 0:00:28.8]} 29... Rxf8 {[%clk 0:02:10.7]} 30. Re7 {[%clk
0:00:28.8]} 30... Rf7 {[%clk 0:02:05.1]} 31. Re8+ {[%clk 0:00:30.1]} 31... Rf8
{[%clk 0:02:06.3]} 32. Re7 {[%clk 0:00:31.5]} 32... Rc8 {[%clk 0:02:00.9]} 33.
Nf4 {[%clk 0:00:32.7]} 33... Nf6 {[%clk 0:01:55.7]} 34. Ne6 {[%clk 0:00:30.8]}
34... Re8 {[%clk 0:01:54.7]} 35. Rxe8+ {[%clk 0:00:24.9]} 35... Nxe8 {[%clk
0:01:56.6]} 36. Kd3 {[%clk 0:00:23.1]} 36... Kf7 {[%clk 0:01:57.7]} 37. Nd8+
{[%clk 0:00:24.4]} 37... Ke7 {[%clk 0:01:54.1]} 38. Nc6+ {[%clk 0:00:25.3]}
38... Kd7 {[%clk 0:01:55.7]} 39. Nb8+ {[%clk 0:00:13.7]} 39... Kc8 {[%clk
0:01:51.2]} 40. Nc6 {[%clk 0:00:14.9]} 40... a6 {[%clk 0:01:48.8]} 41. Kd4
{[%clk 0:00:16.3]} 41... Nf6 {[%clk 0:01:49.1]} 42. h3 {[%clk 0:00:16.3]} 42...
Nd7 {[%clk 0:01:46.6]} 43. Ne7+ {[%clk 0:00:16.4]} 43... Kb8 {[%clk 0:01:41.4]}
44. Kd5 {[%clk 0:00:16.2]} 44... Nf6+ {[%clk 0:01:38.8]} 45. Ke6 {[%clk
0:00:17.6]} 45... Nh5 {[%clk 0:01:36.6]} 46. Kf7 {[%clk 0:00:17]} 46... g5
{[%clk 0:01:34.7]} 47. Nd5 {[%clk 0:00:14.9]} 47... Kb7 {[%clk 0:01:32.3]} 48.
Nf6 {[%clk 0:00:16.2]} 48... Nf4 {[%clk 0:01:18.8]} 49. Nxh7 {[%clk 0:00:16.9]}
49... Nxg2 {[%clk 0:01:19.7]} 50. Nxg5 {[%clk 0:00:18.2]} 50... Kc6 {[%clk
0:01:18.3]} 51. Ne6 {[%clk 0:00:19.5]} 51... a5 {[%clk 0:01:16.7]} 52. Kf6
{[%clk 0:00:15.5]} 52... Kd5 {[%clk 0:01:09.2]} 53. Nxc7+ {[%clk 0:00:15.6]}
53... Kxc5 {[%clk 0:01:10]} 54. Kg5 {[%clk 0:00:15.7]} 54... a4 {[%clk
0:01:04.8]} 55. Ne6+ {[%clk 0:00:16.4]} 55... Kc4 {[%clk 0:01:03]} 56. Nf4
{[%clk 0:00:17.6]} 56... Ne1 {[%clk 0:00:58.1]} 57. Kg4 {[%clk 0:00:13.6]} 57...
Nc2 {[%clk 0:00:56.3]} 58. h4 {[%clk 0:00:14.8]} 58... Nxa3 {[%clk 0:00:54.7]}
59. h5 {[%clk 0:00:16]} 59... Nb5 {[%clk 0:00:55.9]} 60. h6 {[%clk 0:00:15.5]}
60... Nd6 {[%clk 0:00:52.3]} 61. h7 {[%clk 0:00:16.4]} 61... Nf7 {[%clk
0:00:52.5]} 62. Ne2 {[%clk 0:00:17]} 62... Kd3 {[%clk 0:00:45.4]} 63. Nc1+
{[%clk 0:00:17.9]} 63... Ke4 {[%clk 0:00:42.2]} 64. Kh5 {[%clk 0:00:16.7]} 64...
Kf5 {[%clk 0:00:39.9]} 65. Na2 {[%clk 0:00:17.8]} 65... a3 {[%clk 0:00:37.7]}
66. Kh4 {[%clk 0:00:16.9]} 66... Kg6 {[%clk 0:00:38.2]} 67. Kg4 {[%clk
0:00:17.2]} 67... Kxh7 {[%clk 0:00:39.2]} 68. Kf4 {[%clk 0:00:18.7]} 68... Nd6
{[%clk 0:00:38.6]} 69. Ke5 {[%clk 0:00:18]} 69... Nb5 {[%clk 0:00:39.1]} 70. Kd5
{[%clk 0:00:18.7]} 70... Nc7+ {[%clk 0:00:40.3]} 71. Kc4 {[%clk 0:00:19.9]}
71... Ne6 {[%clk 0:00:41.6]} 72. Kb3 {[%clk 0:00:21.1]} 72... Ng7 {[%clk
0:00:43.5]} 73. Kxa3 {[%clk 0:00:22.9]} 73... Nf5 {[%clk 0:00:37.6]} 74. Nc3
{[%clk 0:00:22.9]} 74... Ng7 {[%clk 0:00:38.7]} 75. Na2 {[%clk 0:00:23.9]} 75...
Ne6 {[%clk 0:00:39.2]} 76. Nc3 {[%clk 0:00:25.1]} 76... Ng7 {[%clk 0:00:39.5]}
77. Kb3 {[%clk 0:00:26.4]} 77... Kg6 {[%clk 0:00:40.1]} 78. Kc4 {[%clk
0:00:27.4]} 78... Ne6 {[%clk 0:00:41.6]} 79. Kd5 {[%clk 0:00:28]} 79... Kf5
{[%clk 0:00:42.6]} 80. Ne2 {[%clk 0:00:28.5]} 80... Nf4+ {[%clk 0:00:44.1]} 81.
Nxf4 {[%clk 0:00:29.5]} 1/2-1/2

[Event "***Titled Tuesday 3|2 Blitz"]
[Site "Chess.com"]
[Date "2017.02.07"]
[Round "3"]
[White "ka1ser64"]
[Black "macko06"]
[Result "1/2-1/2"]
[WhiteElo "2296"]
[BlackElo "2369"]
[TimeControl "180+2"]
[EndTime "13:45:21 PST"]
[Termination "Game drawn - insufficient material"]

1. d4 {[%clk 0:03:02]} 1... Nf6 {[%clk 0:02:59.4]} 2. c4 {[%clk 0:03:01.9]} 2...
e6 {[%clk 0:03:00.3]} 3. Nf3 {[%clk 0:03:02.3]} 3... b6 {[%clk 0:03:01]} 4. Bf4
{[%clk 0:02:56.5]} 4... Bb7 {[%clk 0:03:00.6]} 5. e3 {[%clk 0:02:57.1]} 5... Be7
{[%clk 0:02:59.5]} 6. Bd3 {[%clk 0:02:57.8]} 6... O-O {[%clk 0:03:00.3]} 7. O-O
{[%clk 0:02:58.6]} 7... c5 {[%clk 0:02:53.4]} 8. Nc3 {[%clk 0:02:40.8]} 8...
cxd4 {[%clk 0:02:50.6]} 9. exd4 {[%clk 0:02:36.9]} 9... d5 {[%clk 0:02:49.7]}
10. b3 {[%clk 0:02:34.8]} 10... Nc6 {[%clk 0:02:46.3]} 11. Rc1 {[%clk
0:02:33.4]} 11... Rc8 {[%clk 0:02:42.3]} 12. Qd2 {[%clk 0:02:13.5]} 12... Nb4
{[%clk 0:02:31.1]} 13. Be2 {[%clk 0:02:11.3]} 13... Ba6 {[%clk 0:02:19.4]} 14.
Ne5 {[%clk 0:02:11.2]} 14... dxc4 {[%clk 0:02:08.3]} 15. bxc4 {[%clk 0:02:08.8]}
15... Bd6 {[%clk 0:02:09]} 16. Rfd1 {[%clk 0:02:02.5]} 16... Qe7 {[%clk
0:02:02.1]} 17. a3 {[%clk 0:01:36.5]} 17... Nc6 {[%clk 0:02:01.5]} 18. c5 {[%clk
0:01:33.7]} 18... bxc5 {[%clk 0:01:06.5]} 19. Bxa6 {[%clk 0:01:34.2]} 19... cxd4
{[%clk 0:01:02.2]} 20. Nxc6 {[%clk 0:00:44]} 20... Rxc6 {[%clk 0:01:00.5]} 21.
Bxd6 {[%clk 0:00:45]} 21... Qxd6 {[%clk 0:00:26.2]} 22. Bb5 {[%clk 0:00:33.5]}
22... Rc5 {[%clk 0:00:14.6]} 23. a4 {[%clk 0:00:23.1]} 23... e5 {[%clk
0:00:15.2]} 24. Ne2 {[%clk 0:00:18.7]} 24... Rxc1 {[%clk 0:00:12.6]} 25. Rxc1
{[%clk 0:00:18.8]} 25... Ne4 {[%clk 0:00:10.2]} 26. Qc2 {[%clk 0:00:16.9]} 26...
Nf6 {[%clk 0:00:08]} 27. Qd3 {[%clk 0:00:12.3]} 27... Rd8 {[%clk 0:00:06.4]} 28.
h3 {[%clk 0:00:11.7]} 28... h6 {[%clk 0:00:07.8]} 29. Rc6 {[%clk 0:00:10.8]}
29... Qd5 {[%clk 0:00:07.1]} 30. Qc4 {[%clk 0:00:07.3]} 30... Qe4 {[%clk
0:00:06.5]} 31. Rc7 {[%clk 0:00:06.8]} 31... Qg6 {[%clk 0:00:07.2]} 32. Qd3
{[%clk 0:00:04.9]} 32... Qxd3 {[%clk 0:00:07]} 33. Bxd3 {[%clk 0:00:05.6]} 33...
e4 {[%clk 0:00:08.6]} 34. Bc4 {[%clk 0:00:06.9]} 34... d3 {[%clk 0:00:07.5]} 35.
Bxf7+ {[%clk 0:00:06.7]} 35... Kf8 {[%clk 0:00:08.6]} 36. Nc3 {[%clk 0:00:07.9]}
36... d2 {[%clk 0:00:10]} 37. Nd1 {[%clk 0:00:08.8]} 37... Rb8 {[%clk
0:00:08.1]} 38. Bc4 {[%clk 0:00:09.5]} 38... Rb1 {[%clk 0:00:06.8]} 39. Be2
{[%clk 0:00:10.9]} 39... Nd5 {[%clk 0:00:07]} 40. Rc2 {[%clk 0:00:10.3]} 40...
e3 {[%clk 0:00:04.4]} 41. fxe3 {[%clk 0:00:11.1]} 41... Nxe3 {[%clk 0:00:05.4]}
42. Rxd2 {[%clk 0:00:12.8]} 42... Ke7 {[%clk 0:00:05]} 43. Kf2 {[%clk
0:00:13.6]} 43... Nf5 {[%clk 0:00:06.2]} 44. Bb5 {[%clk 0:00:13.7]} 44... Nd6
{[%clk 0:00:06.1]} 45. Be2 {[%clk 0:00:13.7]} 45... Ne4+ {[%clk 0:00:07.2]} 46.
Ke3 {[%clk 0:00:14.4]} 46... Nxd2 {[%clk 0:00:08.2]} 47. Kxd2 {[%clk 0:00:16.3]}
47... Rb4 {[%clk 0:00:09.3]} 48. Nc3 {[%clk 0:00:17.7]} 48... Rb2+ {[%clk
0:00:09.8]} 49. Kd3 {[%clk 0:00:18.1]} 49... g5 {[%clk 0:00:10.3]} 50. Bf3
{[%clk 0:00:19.7]} 50... Rb3 {[%clk 0:00:07.5]} 51. Kc4 {[%clk 0:00:20.8]} 51...
Rb2 {[%clk 0:00:08.5]} 52. Nd5+ {[%clk 0:00:21.6]} 52... Kd6 {[%clk 0:00:09.5]}
53. Nb4 {[%clk 0:00:23.1]} 53... Rb1 {[%clk 0:00:06.3]} 54. Kb5 {[%clk
0:00:23.8]} 54... Kc7 {[%clk 0:00:06.2]} 55. Ka5 {[%clk 0:00:25]} 55... Kd6
{[%clk 0:00:04.3]} 56. Kb5 {[%clk 0:00:25.7]} 56... Kc7 {[%clk 0:00:05.1]} 57.
a5 {[%clk 0:00:25.6]} 57... Rb2 {[%clk 0:00:05.7]} 58. Kc5 {[%clk 0:00:24.6]}
58... h5 {[%clk 0:00:07.1]} 59. Nd5+ {[%clk 0:00:23.8]} 59... Kb8 {[%clk
0:00:07.9]} 60. Nf6 {[%clk 0:00:23.1]} 60... Rc2+ {[%clk 0:00:05]} 61. Kd4
{[%clk 0:00:21.8]} 61... Ra2 {[%clk 0:00:04.9]} 62. Nxh5 {[%clk 0:00:20.5]}
62... Rxa5 {[%clk 0:00:06.1]} 63. Nf6 {[%clk 0:00:22]} 63... Kc7 {[%clk
0:00:06.3]} 64. Nd5+ {[%clk 0:00:22.7]} 64... Kd6 {[%clk 0:00:07.6]} 65. Ne3
{[%clk 0:00:21.7]} 65... Ra4+ {[%clk 0:00:08]} 66. Nc4+ {[%clk 0:00:21.1]} 66...
Ke6 {[%clk 0:00:09.5]} 67. Kc5 {[%clk 0:00:21.9]} 67... Kf5 {[%clk 0:00:08.4]}
68. Ne3+ {[%clk 0:00:21.1]} 68... Kf4 {[%clk 0:00:09.2]} 69. Nd5+ {[%clk
0:00:22.3]} 69... Kg3 {[%clk 0:00:10.4]} 70. Nc3 {[%clk 0:00:23.8]} 70... Ra3
{[%clk 0:00:11.2]} 71. Ne4+ {[%clk 0:00:24.9]} 71... Kf4 {[%clk 0:00:12]} 72.
Nd2 {[%clk 0:00:25.9]} 72... Ra2 {[%clk 0:00:12.3]} 73. Nc4 {[%clk 0:00:26.1]}
73... Kg3 {[%clk 0:00:12.6]} 74. Ne3 {[%clk 0:00:26.7]} 74... Ra3 {[%clk
0:00:12.2]} 75. Nf5+ {[%clk 0:00:27.4]} 75... Kf4 {[%clk 0:00:13.1]} 76. Nd6
{[%clk 0:00:28.5]} 76... Rxf3 {[%clk 0:00:05]} 77. gxf3 {[%clk 0:00:26.8]} 77...
Kxf3 {[%clk 0:00:06.9]} 78. Nf7 {[%clk 0:00:26.5]} 78... Kg3 {[%clk 0:00:05.9]}
79. Nxg5 {[%clk 0:00:27.5]} 79... Kh4 {[%clk 0:00:07.4]} 80. Ne6 {[%clk
0:00:28.4]} 80... Kxh3 {[%clk 0:00:08.8]} 81. Kb5 {[%clk 0:00:29.8]} 81... a6+
{[%clk 0:00:10.2]} 82. Kxa6 {[%clk 0:00:31.7]} 1/2-1/2